Workbook

Sheet Coloranti
B1: Colorante 1 | C1: Colorante 2
A2: Variabili di decisione | B2: 500 | C2: 250
F3: Vincoli
B4: Colorante 1 | C4: Colorante 2 | F4: Quantità massima
A5: Preparato 1 | B5: 1 | C5: 1 | D5: =SUMPRODUCT(B5:C5,B2:C2) -> 750 | F5: 750
A6: Preparato 2 | B6: 1 | C6: 2 | D6: =SUMPRODUCT(B6:C6,B2:C2) -> 1000 | F6: 1000
A7: Preparato 3 | B7: 0 | C7: 1 | D7: =SUMPRODUCT(B7:C7,B2:C2) -> 250 | F7: 400
A9: Prezzo di vendita | B9: 7 | C9: 10
A12: Obiettivo | B12: Max
A13: Profitto | B13: =SUMPRODUCT(B9:C9,B2:C2) -> 6000

Sheet PLI
B1: X1 | C1: X2
A2: Variabili di decisione | B2: 12 | C2: 5
B4: X1 | C4: X2 | F4: Termine noto
A5: Vincolo 1 | B5: 5 | C5: 4 | E5: =SUMPRODUCT(B5:C5,B2:C2) -> 80 | F5: 80
A6: Vincolo 2 | B6: 4 | C6: 5 | E6: =SUMPRODUCT(B6:C6,B2:C2) -> 73 | F6: 80
A8: Costi | B8: 7 | C8: 6.2
A10: Obiettivo | B10: Max
A11: Profitto | B11: =SUMPRODUCT(B8:C8,B2:C2) -> 115

Sheet PLI 0-1
B1: X1 | C1: X2 | D1: X3 | E1: X4 | F1: X5 | G1: X6 | H1: X7
A2: Variabili di decisione | B2: 1 | C2: 1 | D2: 1 | E2: 0 | F2: 1 | G2: 0 | H2: 0
B4: X1 | C4: X2 | D4: X3 | E4: X4 | F4: X5 | G4: X6 | H4: X7 | K4: Capacità massima
A5: Pesi | B5: 10 | C5: 10 | D5: 6 | E5: 12 | F5: 24 | G5: 18 | H5: 10 | J5: =SUMPRODUCT(B5:H5,B2:H2) -> 50 | K5: 51
A7: Profitti | B7: 24 | C7: 21 | D7: 12 | E7: 21 | F7: 33 | G7: 18 | H7: 9
A9: Obiettivo | B9: Max
A10: Profitto | B10: =SUMPRODUCT(B7:H7,B2:H2) -> 90

Sheet PLI2
B1: X1 | C1: X2
A2: Variabili di decisione | B2: 4 | C2: 4
B4: X1 | C4: X2 | F4: Termini noti
A5: Vincoli | B5: -1.3 | C5: 3 | E5: =SUMPRODUCT(B5:C5,B2:C2) -> 6.8 | F5: 9
B6: 3 | C6: 0.9 | E6: =SUMPRODUCT(B6:C6,B2:C2) -> 15.6 | F6: 18
A8: Coefficienti F.O. | B8: 2 | C8: 3
A10: Obiettivo | B10: Max
B11: =SUMPRODUCT(B8:C8,B2:C2) -> 20

Sheet Pubblicità
B1: TV Giorno | C1: TV Prima Serata | D1: Radio | E1: Giornali
A2: Variabili di decisione | B2: 3 | C2: 3.066666667 | D2: 10 | E2: 10
G4: Termini noti
A5: Vincolo 1 | B5: 40000 | C5: 75000 | D5: 30000 | E5: 15000 | F5: =SUMPRODUCT(B5:E5,B2:E2) -> 800000 | G5: 800000
A6: Vincolo 2 | B6: 300000 | C6: 400000 | D6: 200000 | E6: 100000 | F6: =SUMPRODUCT(B6:E6,B2:E2) -> 5126666.667 | G6: 2000000
A7: Vincolo 3 | B7: 40000 | C7: 75000 | D7: 0 | E7: 0 | F7: =SUMPRODUCT(B7:E7,B2:E2) -> 350000 | G7: 500000
A8: Vincolo 4 | B8: 1 | C8: 0 | D8: 0 | E8: 0 | F8: =SUMPRODUCT(B8:E8,B2:E2) -> 3 | G8: 3
A9: Vincolo 5 | B9: 0 | C9: 1 | D9: 0 | E9: 0 | F9: =SUMPRODUCT(B9:E9,B2:E2) -> 3.066666667 | G9: 2
A10: Vincolo 6 | B10: 0 | C10: 0 | D10: 1 | E10: 0 | F10: =SUMPRODUCT(B10:E10,B2:E2) -> 10 | G10: 5
A11: Vincolo 6 bis | B11: 0 | C11: 0 | D11: 1 | E11: 0 | F11: =SUMPRODUCT(B11:E11,B2:E2) -> 10 | G11: 10
A12: Vincolo 7 | B12: 0 | C12: 0 | D12: 0 | E12: 1 | F12: =SUMPRODUCT(B12:E12,B2:E2) -> 10 | G12: 5
A13: Vincolo 7 bis | B13: 0 | C13: 0 | D13: 0 | E13: 1 | F13: =SUMPRODUCT(B13:E13,B2:E2) -> 10 | G13: 10
A15: Clienti raggiunti | B15: 400000 | C15: 900000 | D15: 500000 | E15: 200000
A17: Obiettivo | B17: Max
A18: Clienti raggiunti | B18: =SUMPRODUCT(B15:E15,B2:E2) -> 10960000

Sheet Whisky
B1: A in Freccia Azzurra | C1: B in Freccia Azzurra | D1: C in Freccia Azzurra | E1: A in Montagna Rocciosa | F1: B in Montagna Rocciosa | G1: C in Montagna Rociosa
A2: Variabili di decisione | B2: 1526.666667 | C2: 508.8888889 | D2: 508.8888889 | E2: 473.3333333 | F2: 1991.111111 | G2: 691.1111111
I3: Termini noti
A4: Vincolo Disponibilità di A | B4: 1 | C4: 0 | D4: 0 | E4: 1 | F4: 0 | G4: 0 | H4: =SUMPRODUCT(B4:G4,B2:G2) -> 2000 | I4: 2000
A5: Vincolo disponibilità di B | B5: 0 | C5: 1 | D5: 0 | E5: 0 | F5: 1 | G5: 0 | H5: =SUMPRODUCT(B5:G5,B2:G2) -> 2500 | I5: 2500
A6: Vincolo disponibilità di C | B6: 0 | C6: 0 | D6: 1 | E6: 0 | F6: 0 | G6: 1 | H6: =SUMPRODUCT(B6:G6,B2:G2) -> 1200 | I6: 1200
A7: Vincolo composizione FA | B7: -0.4 | C7: 0.6 | D7: 0.6 | E7: 0 | F7: 0 | G7: 0 | H7: =SUMPRODUCT(B7:G7,B2:G2) -> -5.684341886e-14 | I7: 0
A8: Vincolo composizione FA | B8: -0.2 | C8: -0.2 | D8: 0.8 | E8: 0 | F8: 0 | G8: 0 | H8: =SUMPRODUCT(B8:G8,B2:G2) -> -1.705302566e-13 | I8: 0
A9: Vincolo composizione MR | B9: 0 | C9: 0 | D9: 0 | E9: -0.6 | F9: -0.6 | G9: 0.4 | H9: =SUMPRODUCT(B9:G9,B2:G2) -> -1202.222222 | I9: 0
A10: Vincolo composizione MR | B10: 0 | C10: 0 | D10: 0 | E10: -0.85 | F10: 0.15 | G10: 0.15 | H10: =SUMPRODUCT(B10:G10,B2:G2) -> 4.263256415e-14 | I10: 0
A12: Coefficienti Profitto | B12: 0 | C12: 2 | D12: 3 | E12: -1 | F12: 1 | G12: 2
A14: Obiettivo | B14: Max
A15: Profitto | B15: =SUMPRODUCT(B12:G12,B2:G2) -> 5444.444444

Sheet Turista
B1: Mappa x1 | C1: Panino x2 | D1: Occhiali da sole x3 | E1: Banana x4 | F1: Telefonino x5 | G1: Acqua x6 | H1: Mela x7 | I1: Maglietta x8 | J1: Ombrello x9
B2: 0 | C2: 1 | D2: 0 | E2: 1 | F2: 1 | G2: 1 | H2: 1 | I2: 0 | J2: 0
A4: Valore | B4: 150 | C4: 160 | D4: 20 | E4: 60 | F4: 65 | G4: 200 | H4: 40 | I4: 15 | J4: 40 | L4: Capacità massima
A5: Peso | B5: 9 | C5: 50 | D5: 7 | E5: 27 | F5: 30 | G5: 153 | H5: 39 | I5: 24 | J5: 73 | K5: =SUMPRODUCT(B5:J5,B2+B2:J2) -> 299 | L5: 300
A7: Obiettivo: Max profitto | B7: =SUMPRODUCT(B4:J4,B2+B2:J2) -> 525

Sheet CD
B1: Light my fire x1 | C1: Let it be x2 | D1: Fame x3 | E1: I feel good x4 | F1: I will survive x5 | G1: Imagine x6
B2: 0 | C2: 0 | D2: 0 | E2: 1 | F2: 1 | G2: 1
A4: Gradimento | B4: 8 | C4: 7.5 | D4: 7 | E4: 8 | F4: 8.5 | G4: 9
A5: Ingombro | B5: 210 | C5: 200 | D5: 190 | E5: 220 | F5: 235 | G5: 250 | H5: =SUMPRODUCT(B2:G2,B5:G5) -> 705 | I5: 800
A7: Massimo Gradimento | B7: =SUMPRODUCT(B2:G2,B4:G4) -> 25.5

Sheet Turnazione
B1: x1 | C1: x2 | D1: x3 | E1: x4 | F1: x5 | G1: x6 | H1: x7
B2: 6 | C2: 2 | D2: 4 | E2: 0 | F2: 7 | G2: 3 | H2: 1
A4: Lunedì | B4: 1 | C4: 0 | D4: 0 | E4: 1 | F4: 1 | G4: 1 | H4: 1 | I4: =SUMPRODUCT(B4:H4,B2:H2) -> 17 | J4: 17
A5: Martedì | B5: 1 | C5: 1 | D5: 0 | E5: 0 | F5: 1 | G5: 1 | H5: 1 | I5: =SUMPRODUCT(B5:H5,B2:H2) -> 19 | J5: 13
A6: Mercoledì | B6: 1 | C6: 1 | D6: 1 | E6: 0 | F6: 0 | G6: 1 | H6: 1 | I6: =SUMPRODUCT(B6:H6,B2:H2) -> 16 | J6: 15
A7: Giovedì | B7: 1 | C7: 1 | D7: 1 | E7: 1 | F7: 0 | G7: 0 | H7: 1 | I7: =SUMPRODUCT(B8:H8,B2:H2) -> 19 | J7: 19
A8: Venerdì | B8: 1 | C8: 1 | D8: 1 | E8: 1 | F8: 1 | G8: 0 | H8: 0 | I8: =SUMPRODUCT(B8:H8,B2:H2) -> 19 | J8: 14
A9: Sabato | B9: 0 | C9: 1 | D9: 1 | E9: 1 | F9: 1 | G9: 1 | H9: 0 | I9: =SUMPRODUCT(B9:H9,B2:H2) -> 16 | J9: 16
A10: Domenica | B10: 0 | C10: 0 | D10: 1 | E10: 1 | F10: 1 | G10: 1 | H10: 1 | I10: =SUMPRODUCT(B2:H2,B10:H10) -> 15 | J10: 11
A12: Coefficienti | B12: 1 | C12: 1 | D12: 1 | E12: 1 | F12: 1 | G12: 1 | H12: 1
A14: Minimo numero di operatori | B14: =SUMPRODUCT(B2:H2,B12:H12) -> 23

Sheet Ladro
A1: Oggetti | B1: Collana d'oro | C1: Teiera d'argento | D1: Statua d'avorio | E1: Portacandele di cristallo | F1: Borsa di pelle | G1: Quadro | H1: Parure di perle
B2: x1 | C2: x2 | D2: x3 | E2: x4 | F2: x5 | G2: x6 | H2: x7
B3: 1 | C3: 1 | D3: 1 | E3: 1 | F3: 0 | G3: 0 | H3: 1
A5: Peso | B5: 6 | C5: 12 | D5: 15 | E5: 18 | F5: 10 | G5: 12 | H5: 9 | I5: =SUMPRODUCT(B3:H3,B5:H5) -> 60 | J5: 60
A7: Valore | B7: 200 | C7: 300 | D7: 325 | E7: 320 | F7: 160 | G7: 180 | H7: 125
A9: Massimo profitto | B9: =SUMPRODUCT(B7:H7,B3:H3) -> 1270

Sheet Trenini
A1: Modellini | B1: Lancia x1 | C1: Fulmine x2
B2: 6 | C2: 2
A3: Guadagno | B3: 30 | C3: 80
A5: Vagone I classe | B5: 1 | C5: 2 | D5: =SUMPRODUCT(B5:C5,B2:C2) -> 10 | E5: 10
A6: Vagone II classe | B6: 2 | C6: 3 | D6: =SUMPRODUCT(B6:C6,B2:C2) -> 18 | E6: 21
A7: Vagone merci | B7: 1 | C7: 3 | D7: =SUMPRODUCT(B7:C7,B2:C2) -> 12 | E7: 12
A8: Vagone ristorante | B8: 1 | C8: 0 | D8: =SUMPRODUCT(B8:C8,B2:C2) -> 6 | E8: 10
A9: Vagone letto | B9: 1 | C9: 0 | D9: =SUMPRODUCT(B9:C9,B2:C2) -> 6 | E9: 9
A10: Motrice | B10: 1 | C10: 1 | D10: =SUMPRODUCT(B10:C10,B2:C2) -> 8 | E10: 9
A12: Guadagno totale | B12: =SUMPRODUCT(B2:C2,B3:C3) -> 340

Sheet 2 fasi
A1: Variabili | B1: x1 | C1: x2 | D1: x3 | E1: x4
B2: 2 | C2: 4 | D2: 0 | E2: 0
A4: Coefficienti f.o. | B4: 3 | C4: 1 | D4: -1 | E4: 1
A6: Vincolo 1 | B6: 1 | C6: 2 | D6: 1 | E6: 0 | F6: =SUMPRODUCT(B6:E6,B2:E2) -> 10 | G6: 10
A7: Vincolo 2 | B7: 5 | C7: 5 | D7: 2 | E7: 1 | F7: =SUMPRODUCT(B7:E7,B2:E2) -> 30 | G7: 30
A8: Vincolo 3 | B8: 3 | C8: 1 | D8: 0 | E8: 1 | F8: =SUMPRODUCT(B8:E8,B2:E2) -> 10 | G8: 10
A10: Max | B10: =SUMPRODUCT(B2:E2,B4:E4) -> 10

Sheet 2 fasi libro
C1: Variabili | D1: x1 | E1: x2 | F1: x3 | G1: x4 | H1: x5
D2: 5.555555556 | E2: 0 | F2: 0 | G2: 0 | H2: 1.111111111
C4: vincolo 1 | D4: 1 | E4: 3 | F4: -1 | G4: 2 | H4: 4 | I4: =SUMPRODUCT(D4:H4,D2:H2) -> 10 | J4: 10
C5: vincolo 2 | D5: 2 | E5: -1 | F5: 0 | G5: 1 | H5: -1 | I5: =SUMPRODUCT(D5:H5,D2:H2) -> 10 | J5: 10
C6: vincolo 3 | D6: 3 | E6: 2 | F6: -1 | G6: 3 | H6: 3 | I6: =SUMPRODUCT(D6:H6,D2:H2) -> 20 | J6: 20
C7: vincolo 4 | D7: 4 | E7: 5 | F7: -3 | G7: 5 | H7: 7 | I7: =SUMPRODUCT(D7:H7,D2:H2) -> 30 | J7: 30
C9: coefficienti | D9: -20 | E9: 30 | F9: 100 | G9: -20 | H9: 40
C11: max | D11: =SUMPRODUCT(D9:H9,D2:H2) -> -66.66666667
